[Event "*** SCC Grand Prix: Titled Tuesday Blitz"]
[Site "Chess.com"]
[Date "2020.07.21"]
[Round "4"]
[White "Chess_Boxer123"]
[Black "checkmatequen"]
[Result "1-0"]
[WhiteElo "2575"]
[BlackElo "2303"]
[TimeControl "180+1"]
[EndTime "10:39:47 PDT"]
[Termination "Chess_Boxer123 won on time"]

1. d4 {[%clk 0:03:00.4]} 1... Nf6 {[%clk 0:02:59.5]} 2. c4 {[%clk 0:03:00.2]}
2... e6 {[%clk 0:02:59.8]} 3. Nc3 {[%clk 0:02:59]} 3... c5 {[%clk 0:03:00.3]} 4.
d5 {[%clk 0:02:58.8]} 4... exd5 {[%clk 0:03:01.2]} 5. cxd5 {[%clk 0:02:59.4]}
5... d6 {[%clk 0:03:00.9]} 6. Nf3 {[%clk 0:02:57.8]} 6... g6 {[%clk 0:03:01.3]}
7. Nd2 {[%clk 0:02:57.8]} 7... Bg7 {[%clk 0:03:01.9]} 8. e4 {[%clk 0:02:58.4]}
8... O-O {[%clk 0:03:02.5]} 9. Be2 {[%clk 0:02:58.5]} 9... Re8 {[%clk
0:02:58.3]} 10. O-O {[%clk 0:02:57.9]} 10... Na6 {[%clk 0:02:56.6]} 11. f3
{[%clk 0:02:58]} 11... Nc7 {[%clk 0:02:56.7]} 12. a4 {[%clk 0:02:57.3]} 12... b6
{[%clk 0:02:56.2]} 13. Kh1 {[%clk 0:02:51.1]} 13... Ba6 {[%clk 0:02:52.6]} 14.
Nc4 {[%clk 0:02:47.8]} 14... Rb8 {[%clk 0:02:49.9]} 15. Bg5 {[%clk 0:02:43.2]}
15... Qd7 {[%clk 0:02:44.5]} 16. Qd2 {[%clk 0:02:25.5]} 16... Bxc4 {[%clk
0:02:44.4]} 17. Bxc4 {[%clk 0:02:25.5]} 17... a6 {[%clk 0:02:44.9]} 18. Be2
{[%clk 0:02:25.2]} 18... b5 {[%clk 0:02:43.9]} 19. a5 {[%clk 0:02:25.6]} 19...
b4 {[%clk 0:02:41.6]} 20. Na4 {[%clk 0:02:23.5]} 20... Nb5 {[%clk 0:02:41.5]}
21. Nb6 {[%clk 0:02:12.5]} 21... Qe7 {[%clk 0:02:41.4]} 22. Bxb5 {[%clk
0:01:55.5]} 22... axb5 {[%clk 0:02:42.3]} 23. Rfe1 {[%clk 0:01:49.5]} 23... Qc7
{[%clk 0:02:39.9]} 24. e5 {[%clk 0:01:42.1]} 24... Nd7 {[%clk 0:02:31.6]} 25.
exd6 {[%clk 0:01:39.7]} 25... Qxd6 {[%clk 0:02:32.5]} 26. Rxe8+ {[%clk
0:01:39.4]} 26... Rxe8 {[%clk 0:02:31.7]} 27. Nxd7 {[%clk 0:01:38.5]} 27... Qxd7
{[%clk 0:02:32.6]} 28. a6 {[%clk 0:01:38.6]} 28... c4 {[%clk 0:02:21.3]} 29.
Qxb4 {[%clk 0:00:45.4]} 29... Qxd5 {[%clk 0:02:20.7]} 30. a7 {[%clk 0:00:44.6]}
30... Ra8 {[%clk 0:02:07.4]} 31. Be3 {[%clk 0:00:44.5]} 31... Qe5 {[%clk
0:01:41.2]} 32. Bb6 {[%clk 0:00:23.7]} 32... Qxb2 {[%clk 0:01:33.1]} 33. Qxb2
{[%clk 0:00:21.6]} 33... Bxb2 {[%clk 0:01:33.8]} 34. Rd1 {[%clk 0:00:22.1]}
34... Bf6 {[%clk 0:01:10.5]} 35. Rd6 {[%clk 0:00:16]} 35... Kg7 {[%clk
0:00:50.1]} 36. Rc6 {[%clk 0:00:04.3]} 36... c3 {[%clk 0:00:45.3]} 37. g4 {[%clk
0:00:02.4]} 37... b4 {[%clk 0:00:43.1]} 38. g5 {[%clk 0:00:02.9]} 38... Bxg5
{[%clk 0:00:37.7]} 39. Rc4 {[%clk 0:00:02.3]} 39... Be7 {[%clk 0:00:29.7]} 40.
Kg2 {[%clk 0:00:02.6]} 40... Kf6 {[%clk 0:00:24.3]} 41. Kf2 {[%clk 0:00:03.1]}
41... Ke6 {[%clk 0:00:24.2]} 42. Ke3 {[%clk 0:00:03.5]} 42... Kd5 {[%clk
0:00:24.6]} 43. Kd3 {[%clk 0:00:04]} 43... Bd6 {[%clk 0:00:19.5]} 44. Bg1 {[%clk
0:00:02.3]} 44... f5 {[%clk 0:00:13.7]} 45. f4 {[%clk 0:00:02.8]} 45... Re8
{[%clk 0:00:13.5]} 46. h3 {[%clk 0:00:02.4]} 46... h6 {[%clk 0:00:07.1]} 47.
Rd4+ {[%clk 0:00:03]} 47... Kc5 {[%clk 0:00:06.9]} 48. Rc4+ {[%clk 0:00:03.9]}
48... Kd5 {[%clk 0:00:06.8]} 49. Rd4+ {[%clk 0:00:04.4]} 49... Kc6 {[%clk
0:00:06.9]} 50. Rc4+ {[%clk 0:00:03.6]} 50... Kd7 {[%clk 0:00:06.9]} 51. Rd4
{[%clk 0:00:03.1]} 51... g5 {[%clk 0:00:06.9]} 52. fxg5 {[%clk 0:00:03.1]} 52...
hxg5 {[%clk 0:00:07.8]} 53. Kc2 {[%clk 0:00:03.7]} 53... f4 {[%clk 0:00:07.5]}
54. Rd1 {[%clk 0:00:03.3]} 54... f3 {[%clk 0:00:07]} 55. Bh2 {[%clk 0:00:02.9]}
55... Re2+ {[%clk 0:00:01.9]} 56. Kb3 {[%clk 0:00:03]} 56... Rb2+ {[%clk
0:00:01.4]} 57. Kc4 {[%clk 0:00:03.1]} 57... Ra2 {[%clk 0:00:01.1]} 58. Bxd6
{[%clk 0:00:03.2]} 1-0

[Event "*** SCC Grand Prix: Titled Tuesday Blitz"]
[Site "Chess.com"]
[Date "2020.07.21"]
[Round "4"]
[White "pastouche06"]
[Black "MendozaDavid2000"]
[Result "1-0"]
[WhiteElo "2528"]
[BlackElo "2284"]
[TimeControl "180+1"]
[EndTime "10:39:50 PDT"]
[Termination "pastouche06 won on time"]

1. d4 {[%clk 0:03:00.9]} 1... Nf6 {[%clk 0:02:58.3]} 2. c4 {[%clk 0:03:00.5]}
2... g6 {[%clk 0:02:57.3]} 3. f3 {[%clk 0:02:57.4]} 3... Bg7 {[%clk 0:02:54.5]}
4. e4 {[%clk 0:02:57.3]} 4... d6 {[%clk 0:02:54.5]} 5. Ne2 {[%clk 0:02:57.1]}
5... O-O {[%clk 0:02:54.8]} 6. Be3 {[%clk 0:02:56.7]} 6... Nbd7 {[%clk
0:02:49.2]} 7. Qd2 {[%clk 0:02:55.3]} 7... e5 {[%clk 0:02:49.5]} 8. d5 {[%clk
0:02:53.7]} 8... a6 {[%clk 0:02:49.7]} 9. Nbc3 {[%clk 0:02:49]} 9... Rb8 {[%clk
0:02:50.1]} 10. Ng3 {[%clk 0:02:44.4]} 10... h5 {[%clk 0:02:49]} 11. Bd3 {[%clk
0:02:33.4]} 11... Kh7 {[%clk 0:02:46.8]} 12. O-O {[%clk 0:02:32]} 12... Ng8
{[%clk 0:02:46.7]} 13. b4 {[%clk 0:02:17.9]} 13... Bh6 {[%clk 0:02:45.2]} 14.
Rac1 {[%clk 0:02:09.1]} 14... h4 {[%clk 0:02:33.4]} 15. Nh1 {[%clk 0:02:08.5]}
15... f5 {[%clk 0:02:33.9]} 16. exf5 {[%clk 0:02:08.2]} 16... gxf5 {[%clk
0:02:33.6]} 17. g4 {[%clk 0:01:47.2]} 17... Bxe3+ {[%clk 0:00:49.5]} 18. Qxe3
{[%clk 0:01:48.1]} 18... e4 {[%clk 0:00:22.2]} 19. Be2 {[%clk 0:01:21.6]} 19...
Ne5 {[%clk 0:00:12.6]} 20. f4 {[%clk 0:00:59.3]} 20... Nxg4 {[%clk 0:00:12.4]}
21. Bxg4 {[%clk 0:00:59.5]} 21... fxg4 {[%clk 0:00:13.3]} 22. Nxe4 {[%clk
0:00:59.7]} 22... Bf5 {[%clk 0:00:10.6]} 23. Ng5+ {[%clk 0:01:00]} 23... Kg6
{[%clk 0:00:07.8]} 24. Nf2 {[%clk 0:00:43.5]} 24... Nh6 {[%clk 0:00:05.4]} 25.
Ne6 {[%clk 0:00:35.6]} 25... Bxe6 {[%clk 0:00:04.2]} 26. dxe6 {[%clk 0:00:29.1]}
26... Qf6 {[%clk 0:00:03.6]} 27. Nd3 {[%clk 0:00:18.7]} 27... Rbe8 {[%clk
0:00:02.5]} 28. Rce1 {[%clk 0:00:18]} 28... Kh5 {[%clk 0:00:02.7]} 29. Kh1
{[%clk 0:00:16.8]} 29... Rg8 {[%clk 0:00:03]} 30. Qe4 {[%clk 0:00:16.8]} 30...
Nf5 {[%clk 0:00:03.4]} 31. Qxb7 {[%clk 0:00:15.3]} 31... g3 {[%clk 0:00:03.5]}
32. Rg1 {[%clk 0:00:12.3]} 32... gxh2 {[%clk 0:00:03.2]} 33. Qf3+ {[%clk
0:00:12.8]} 33... Kh6 {[%clk 0:00:02.9]} 34. Kxh2 {[%clk 0:00:10.6]} 34... Rg3
{[%clk 0:00:01.8]} 35. Rxg3 {[%clk 0:00:07.1]} 35... hxg3+ {[%clk 0:00:02.7]}
36. Kg1 {[%clk 0:00:07.5]} 36... Rh8 {[%clk 0:00:02.8]} 37. e7 {[%clk
0:00:06.4]} 37... Qd4+ {[%clk 0:00:03]} 38. Nf2 {[%clk 0:00:03.5]} 38... gxf2+
{[%clk 0:00:02.7]} 39. Qxf2 {[%clk 0:00:04.4]} 39... Rg8+ {[%clk 0:00:02.5]} 40.
Kf1 {[%clk 0:00:04.3]} 40... Qxf2+ {[%clk 0:00:02.9]} 41. Kxf2 {[%clk
0:00:05.2]} 41... Nxe7 {[%clk 0:00:03.6]} 42. Rxe7 {[%clk 0:00:05.4]} 42... Rb8
{[%clk 0:00:04]} 43. Rxc7 {[%clk 0:00:05.1]} 43... Rxb4 {[%clk 0:00:04.1]} 44.
Rc6 {[%clk 0:00:05.7]} 44... Ra4 {[%clk 0:00:03.1]} 45. Rxd6+ {[%clk 0:00:05]}
45... Kg7 {[%clk 0:00:04]} 46. c5 {[%clk 0:00:05.5]} 46... Rxa2+ {[%clk
0:00:04.3]} 47. Ke3 {[%clk 0:00:05.5]} 47... Kf7 {[%clk 0:00:04.8]} 48. Ke4
{[%clk 0:00:05.7]} 48... Ra4+ {[%clk 0:00:05.1]} 49. Ke5 {[%clk 0:00:05.9]}
49... Ra5 {[%clk 0:00:04.4]} 50. Kd5 {[%clk 0:00:05.8]} 50... Ra4 {[%clk
0:00:03.6]} 51. f5 {[%clk 0:00:06]} 51... Rf4 {[%clk 0:00:01.9]} 52. f6 {[%clk
0:00:06.3]} 52... Rf5+ {[%clk 0:00:01.5]} 53. Kc6 {[%clk 0:00:06]} 1-0

[Event "*** SCC Grand Prix: Titled Tuesday Blitz"]
[Site "Chess.com"]
[Date "2020.07.21"]
[Round "4"]
[White "ChronicUnhappiness"]
[Black "Bazarov04"]
[Result "1-0"]
[WhiteElo "2389"]
[BlackElo "2587"]
[TimeControl "180+1"]
[EndTime "10:39:59 PDT"]
[Termination "ChronicUnhappiness won on time"]

1. c4 {[%clk 0:03:00.9]} 1... e6 {[%clk 0:02:58.3]} 2. d4 {[%clk 0:03:00.3]}
2... f5 {[%clk 0:02:57.8]} 3. Nf3 {[%clk 0:02:59.8]} 3... Nf6 {[%clk 0:02:58.1]}
4. g3 {[%clk 0:03:00.1]} 4... d5 {[%clk 0:02:57.8]} 5. Bg2 {[%clk 0:03:00.3]}
5... Ne4 {[%clk 0:02:58.3]} 6. O-O {[%clk 0:02:59.4]} 6... Nc6 {[%clk
0:02:58.6]} 7. Nc3 {[%clk 0:02:54.1]} 7... Be7 {[%clk 0:02:46.5]} 8. Bf4 {[%clk
0:02:44.4]} 8... g5 {[%clk 0:02:11.2]} 9. Be5 {[%clk 0:02:44]} 9... Nxe5 {[%clk
0:02:11.1]} 10. Nxe5 {[%clk 0:02:43]} 10... c6 {[%clk 0:02:10.4]} 11. f3 {[%clk
0:02:31.3]} 11... Nd6 {[%clk 0:01:55.1]} 12. c5 {[%clk 0:02:28.2]} 12... Nf7
{[%clk 0:01:54.9]} 13. Nd3 {[%clk 0:01:57]} 13... O-O {[%clk 0:01:52.1]} 14. f4
{[%clk 0:01:53.2]} 14... Bf6 {[%clk 0:01:50.4]} 15. e3 {[%clk 0:01:52.7]} 15...
b6 {[%clk 0:01:48.2]} 16. b4 {[%clk 0:01:51.4]} 16... a5 {[%clk 0:01:48.3]} 17.
a3 {[%clk 0:01:49.1]} 17... Ba6 {[%clk 0:01:42.9]} 18. Rf2 {[%clk 0:01:37.8]}
18... Bc4 {[%clk 0:01:41.7]} 19. Nb2 {[%clk 0:01:19.3]} 19... b5 {[%clk
0:01:40.8]} 20. Nxc4 {[%clk 0:01:18.5]} 20... bxc4 {[%clk 0:01:40.9]} 21. b5
{[%clk 0:01:12.7]} 21... cxb5 {[%clk 0:01:40]} 22. Nxb5 {[%clk 0:01:12.7]} 22...
a4 {[%clk 0:01:37.6]} 23. Rb1 {[%clk 0:00:55.1]} 23... Qa5 {[%clk 0:01:11.4]}
24. Qd2 {[%clk 0:00:54.3]} 24... Rfb8 {[%clk 0:01:11]} 25. Qxa5 {[%clk
0:00:49.7]} 25... Rxa5 {[%clk 0:01:11.9]} 26. Rfb2 {[%clk 0:00:49.7]} 26... gxf4
{[%clk 0:00:41.1]} 27. gxf4 {[%clk 0:00:48.5]} 27... Nd8 {[%clk 0:00:41.2]} 28.
Bf3 {[%clk 0:00:47.9]} 28... Nc6 {[%clk 0:00:37.3]} 29. Bd1 {[%clk 0:00:38.3]}
29... Kf8 {[%clk 0:00:34.4]} 30. Kf1 {[%clk 0:00:30.5]} 30... Ke7 {[%clk
0:00:29.2]} 31. Nc3 {[%clk 0:00:25.6]} 31... Rb3 {[%clk 0:00:28.4]} 32. Bxb3
{[%clk 0:00:22.5]} 32... axb3 {[%clk 0:00:29.3]} 33. a4 {[%clk 0:00:17.2]} 33...
Kd7 {[%clk 0:00:26.8]} 34. Rg2 {[%clk 0:00:16.9]} 34... Ra8 {[%clk 0:00:20.5]}
35. Ke2 {[%clk 0:00:16.9]} 35... Ke7 {[%clk 0:00:13.1]} 36. Rbg1 {[%clk
0:00:16.1]} 36... Kf7 {[%clk 0:00:10.9]} 37. Kd2 {[%clk 0:00:15]} 37... Nb4
{[%clk 0:00:10.5]} 38. h4 {[%clk 0:00:13.4]} 38... Nc6 {[%clk 0:00:05.1]} 39. h5
{[%clk 0:00:13.5]} 39... Nb4 {[%clk 0:00:04.5]} 40. h6 {[%clk 0:00:13.6]} 40...
Nd3 {[%clk 0:00:04.7]} 41. Rg7+ {[%clk 0:00:09.8]} 41... Bxg7 {[%clk 0:00:04.9]}
42. hxg7 {[%clk 0:00:08.6]} 42... Kg8 {[%clk 0:00:05]} 43. Rf1 {[%clk 0:00:02]}
43... h5 {[%clk 0:00:04.6]} 44. Rg1 {[%clk 0:00:02.5]} 44... h4 {[%clk
0:00:04.6]} 45. Rh1 {[%clk 0:00:01.8]} 45... Kxg7 {[%clk 0:00:04.1]} 46. Rxh4
{[%clk 0:00:02.7]} 46... Nb4 {[%clk 0:00:03.4]} 47. Rh1 {[%clk 0:00:03.6]} 47...
Kg6 {[%clk 0:00:02.4]} 48. Rg1+ {[%clk 0:00:03.7]} 48... Kf7 {[%clk 0:00:02.9]}
49. Rh1 {[%clk 0:00:03.4]} 49... Kg7 {[%clk 0:00:03.2]} 50. Rg1+ {[%clk
0:00:03.6]} 50... Kf7 {[%clk 0:00:03.5]} 51. Rh1 {[%clk 0:00:04]} 51... Rg8
{[%clk 0:00:04]} 52. Rh2 {[%clk 0:00:02.6]} 52... Rg1 {[%clk 0:00:03.7]} 53. c6
{[%clk 0:00:02.5]} 53... Nxc6 {[%clk 0:00:03.2]} 54. Rh7+ {[%clk 0:00:02.4]}
54... Kf6 {[%clk 0:00:03.3]} 55. Rc7 {[%clk 0:00:03.3]} 55... Nb4 {[%clk
0:00:03.5]} 56. Rb7 {[%clk 0:00:02.6]} 56... Rg2+ {[%clk 0:00:03.8]} 57. Kd1
{[%clk 0:00:03]} 57... Nd3 {[%clk 0:00:04]} 58. a5 {[%clk 0:00:02.7]} 58... b2
{[%clk 0:00:03]} 59. a6 {[%clk 0:00:02.5]} 59... Rg1+ {[%clk 0:00:03.9]} 60. Kc2
{[%clk 0:00:02.4]} 60... Rc1+ {[%clk 0:00:03.8]} 61. Kd2 {[%clk 0:00:03.1]}
61... Ra1 {[%clk 0:00:03.8]} 62. a7 {[%clk 0:00:04]} 62... Kg6 {[%clk
0:00:03.1]} 63. Nd1 {[%clk 0:00:04]} 63... Ra2 {[%clk 0:00:01.4]} 64. Nxb2
{[%clk 0:00:04]} 1-0

[Event "*** SCC Grand Prix: Titled Tuesday Blitz"]
[Site "Chess.com"]
[Date "2020.07.21"]
[Round "4"]
[White "Zmof"]
[Black "chesstrainer2042"]
[Result "1/2-1/2"]
[WhiteElo "2178"]
[BlackElo "2459"]
[TimeControl "180+1"]
[EndTime "10:39:59 PDT"]
[Termination "Game drawn by agreement"]

1. e4 {[%clk 0:03:00.9]} 1... e5 {[%clk 0:02:59.1]} 2. Bc4 {[%clk 0:03:00.2]}
2... Nf6 {[%clk 0:02:57.5]} 3. d3 {[%clk 0:02:59.8]} 3... c6 {[%clk 0:02:57.6]}
4. Nf3 {[%clk 0:02:59.3]} 4... d5 {[%clk 0:02:56.6]} 5. Bb3 {[%clk 0:02:59.5]}
5... Bb4+ {[%clk 0:02:54.1]} 6. Bd2 {[%clk 0:02:58.9]} 6... Bd6 {[%clk
0:02:52.1]} 7. exd5 {[%clk 0:02:53.7]} 7... Nxd5 {[%clk 0:02:49.4]} 8. O-O
{[%clk 0:02:50.8]} 8... O-O {[%clk 0:02:48.8]} 9. Re1 {[%clk 0:02:49.3]} 9...
Re8 {[%clk 0:02:47.8]} 10. Nc3 {[%clk 0:02:44.7]} 10... Nxc3 {[%clk 0:02:46.6]}
11. Bxc3 {[%clk 0:02:44]} 11... Nd7 {[%clk 0:02:44.9]} 12. d4 {[%clk 0:02:25.9]}
12... e4 {[%clk 0:02:38.9]} 13. Ne5 {[%clk 0:02:25.3]} 13... Bxe5 {[%clk
0:02:39.2]} 14. dxe5 {[%clk 0:02:25]} 14... Nc5 {[%clk 0:02:39.7]} 15. Qh5
{[%clk 0:01:41.8]} 15... Be6 {[%clk 0:02:28.9]} 16. Rad1 {[%clk 0:01:36.8]}
16... Qc8 {[%clk 0:02:28.3]} 17. h3 {[%clk 0:01:32.5]} 17... a5 {[%clk 0:02:27]}
18. Bd4 {[%clk 0:01:14.9]} 18... Nxb3 {[%clk 0:02:18.6]} 19. axb3 {[%clk
0:01:14.3]} 19... c5 {[%clk 0:02:18.9]} 20. Bc3 {[%clk 0:01:09.1]} 20... a4
{[%clk 0:02:13.5]} 21. bxa4 {[%clk 0:01:08.8]} 21... Rxa4 {[%clk 0:02:12.6]} 22.
Rd6 {[%clk 0:00:50.2]} 22... Bf5 {[%clk 0:02:07.2]} 23. Red1 {[%clk 0:00:46.4]}
23... Bg6 {[%clk 0:02:04.3]} 24. Qh4 {[%clk 0:00:45]} 24... Ra8 {[%clk
0:02:03.5]} 25. Qg4 {[%clk 0:00:28.8]} 25... Qxg4 {[%clk 0:01:50.5]} 26. hxg4
{[%clk 0:00:28.6]} 26... b5 {[%clk 0:01:50.7]} 27. Rc6 {[%clk 0:00:23.1]} 27...
Rac8 {[%clk 0:01:41]} 28. Rdd6 {[%clk 0:00:20.7]} 28... e3 {[%clk 0:01:30.8]}
29. fxe3 {[%clk 0:00:19]} 29... Bxc2 {[%clk 0:01:30.8]} 30. Rxc8 {[%clk
0:00:14.2]} 30... Rxc8 {[%clk 0:01:30.2]} 31. e6 {[%clk 0:00:14.9]} 31... f6
{[%clk 0:01:20.4]} 32. e7 {[%clk 0:00:14.8]} 32... Re8 {[%clk 0:01:11.6]} 33.
Rd8 {[%clk 0:00:09.3]} 33... Kf7 {[%clk 0:01:11.4]} 34. Rxe8 {[%clk 0:00:08.3]}
34... Kxe8 {[%clk 0:01:11.2]} 35. g5 {[%clk 0:00:08.7]} 35... Kxe7 {[%clk
0:01:10.3]} 36. gxf6+ {[%clk 0:00:08.2]} 36... gxf6 {[%clk 0:01:10.4]} 37. Kf2
{[%clk 0:00:08.6]} 37... Be4 {[%clk 0:01:09.3]} 38. g3 {[%clk 0:00:07.7]} 38...
f5 {[%clk 0:01:07.9]} 39. Be5 {[%clk 0:00:06.8]} 39... Ke6 {[%clk 0:01:07.4]}
40. Bf4 {[%clk 0:00:06.5]} 40... Kd5 {[%clk 0:01:07.6]} 41. Ke1 {[%clk
0:00:07.1]} 41... Kc4 {[%clk 0:01:05.8]} 42. Kd2 {[%clk 0:00:07.6]} 42... Kb3
{[%clk 0:01:05.7]} 43. Kc1 {[%clk 0:00:08.2]} 43... c4 {[%clk 0:01:04.1]} 44.
Be5 {[%clk 0:00:08.5]} 44... b4 {[%clk 0:01:04.1]} 45. Bd4 {[%clk 0:00:08.8]}
45... Ka2 {[%clk 0:01:00.5]} 46. Be5 {[%clk 0:00:08.5]} 46... h5 {[%clk
0:00:54.6]} 47. Bd4 {[%clk 0:00:08.3]} 47... Kb3 {[%clk 0:00:52.4]} 48. Be5
{[%clk 0:00:08.4]} 48... Bd5 {[%clk 0:00:52.7]} 49. Bd4 {[%clk 0:00:08.2]} 49...
Ka2 {[%clk 0:00:50.2]} 50. Be5 {[%clk 0:00:07.8]} 50... c3 {[%clk 0:00:49.7]}
51. bxc3 {[%clk 0:00:07.5]} 51... b3 {[%clk 0:00:50]} 52. c4 {[%clk 0:00:08]}
52... Bxc4 {[%clk 0:00:50.4]} 53. Bd4 {[%clk 0:00:07.8]} 53... Bd3 {[%clk
0:00:48.5]} 54. Be5 {[%clk 0:00:07.7]} 54... Be4 {[%clk 0:00:48.4]} 55. Bd4
{[%clk 0:00:08]} 55... Ka3 {[%clk 0:00:47.1]} 56. Be5 {[%clk 0:00:08]} 56... Kb4
{[%clk 0:00:47.3]} 57. Kb2 {[%clk 0:00:08.3]} 57... Kc4 {[%clk 0:00:47.2]} 58.
Bd4 {[%clk 0:00:07.6]} 58... Bc2 {[%clk 0:00:46.3]} 59. Be5 {[%clk 0:00:07.2]}
59... Kd3 {[%clk 0:00:45.9]} 60. Bf4 {[%clk 0:00:07.7]} 60... Ke2 {[%clk
0:00:44.6]} 61. Bg5 {[%clk 0:00:07.1]} 61... Kf3 {[%clk 0:00:41.2]} 62. Bf4
{[%clk 0:00:07.5]} 62... Bd1 {[%clk 0:00:39.9]} 63. Kc3 {[%clk 0:00:07.6]} 63...
Kg4 {[%clk 0:00:37.9]} 64. Kb2 {[%clk 0:00:07.2]} 64... Bc2 {[%clk 0:00:36.9]}
65. Kc3 {[%clk 0:00:06.7]} 65... Kf3 {[%clk 0:00:34.7]} 66. Kb2 {[%clk
0:00:06.8]} 66... Kg4 {[%clk 0:00:34.8]} 67. Kc3 {[%clk 0:00:06.8]} 67... h4
{[%clk 0:00:35.2]} 68. gxh4 {[%clk 0:00:05.1]} 68... Kxh4 {[%clk 0:00:35.4]} 69.
Kb2 {[%clk 0:00:05.8]} 69... Kg4 {[%clk 0:00:34.9]} 70. Kc3 {[%clk 0:00:05]}
1/2-1/2

[Event "*** SCC Grand Prix: Titled Tuesday Blitz"]
[Site "Chess.com"]
[Date "2020.07.21"]
[Round "4"]
[White "jerry_77"]
[Black "MomchilPetkov"]
[Result "1-0"]
[WhiteElo "2377"]
[BlackElo "2578"]
[TimeControl "180+1"]
[EndTime "10:40:01 PDT"]
[Termination "jerry_77 won by checkmate"]

1. e4 {[%clk 0:02:54.9]} 1... c5 {[%clk 0:02:57.2]} 2. Nf3 {[%clk 0:02:54.9]}
2... d6 {[%clk 0:02:53.6]} 3. d4 {[%clk 0:02:55.8]} 3... cxd4 {[%clk 0:02:54.3]}
4. Nxd4 {[%clk 0:02:56.4]} 4... Nf6 {[%clk 0:02:54.5]} 5. Nc3 {[%clk 0:02:51.4]}
5... a6 {[%clk 0:02:54.4]} 6. Be3 {[%clk 0:02:48.1]} 6... e5 {[%clk 0:02:53.7]}
7. Nb3 {[%clk 0:02:48.3]} 7... Be6 {[%clk 0:02:52.7]} 8. h3 {[%clk 0:02:48.4]}
8... h5 {[%clk 0:02:42.7]} 9. f4 {[%clk 0:02:48.1]} 9... exf4 {[%clk 0:02:29.4]}
10. Bxf4 {[%clk 0:02:49]} 10... Nc6 {[%clk 0:02:29.7]} 11. Qd2 {[%clk
0:02:48.4]} 11... Be7 {[%clk 0:02:23]} 12. O-O-O {[%clk 0:02:47.5]} 12... Ne5
{[%clk 0:02:21.1]} 13. Nd4 {[%clk 0:02:36.4]} 13... Qc7 {[%clk 0:02:03]} 14. Be2
{[%clk 0:02:30.7]} 14... b5 {[%clk 0:01:47.4]} 15. Nd5 {[%clk 0:02:06.7]} 15...
Nxd5 {[%clk 0:01:21.5]} 16. exd5 {[%clk 0:02:05.6]} 16... Bd7 {[%clk 0:01:19.9]}
17. Rhe1 {[%clk 0:01:53.3]} 17... Bf6 {[%clk 0:01:14.2]} 18. Kb1 {[%clk
0:01:50.9]} 18... g6 {[%clk 0:01:07.6]} 19. g4 {[%clk 0:01:49.5]} 19... hxg4
{[%clk 0:01:06.2]} 20. hxg4 {[%clk 0:01:50.4]} 20... Kf8 {[%clk 0:01:03.5]} 21.
Rf1 {[%clk 0:01:46.2]} 21... Kg8 {[%clk 0:00:50.1]} 22. Bh6 {[%clk 0:01:14.4]}
22... Bg7 {[%clk 0:00:45.1]} 23. g5 {[%clk 0:01:12.3]} 23... Bxh6 {[%clk
0:00:40.6]} 24. gxh6 {[%clk 0:01:12.2]} 24... Qd8 {[%clk 0:00:40.3]} 25. Nf3
{[%clk 0:01:06.9]} 25... Qe7 {[%clk 0:00:25]} 26. Qf4 {[%clk 0:00:59.6]} 26...
Bf5 {[%clk 0:00:18.9]} 27. Nd4 {[%clk 0:00:56.4]} 27... Bd7 {[%clk 0:00:17.1]}
28. Rde1 {[%clk 0:00:55.4]} 28... Kh7 {[%clk 0:00:15.1]} 29. Bd1 {[%clk
0:00:52.7]} 29... Raf8 {[%clk 0:00:15.2]} 30. Nf3 {[%clk 0:00:50.2]} 30... f6
{[%clk 0:00:15.7]} 31. c3 {[%clk 0:00:45.9]} 31... Bf5+ {[%clk 0:00:15.6]} 32.
Ka1 {[%clk 0:00:42.3]} 32... Qa7 {[%clk 0:00:12.8]} 33. Nd4 {[%clk 0:00:36.6]}
33... Bd7 {[%clk 0:00:11.1]} 34. Bc2 {[%clk 0:00:35.9]} 34... Rhg8 {[%clk
0:00:07.5]} 35. Rg1 {[%clk 0:00:35.4]} 35... Rf7 {[%clk 0:00:07.8]} 36. a3
{[%clk 0:00:29.9]} 36... a5 {[%clk 0:00:07]} 37. Qg3 {[%clk 0:00:19.8]} 37... b4
{[%clk 0:00:05]} 38. cxb4 {[%clk 0:00:13.7]} 38... axb4 {[%clk 0:00:04.8]} 39.
Ne6 {[%clk 0:00:14.2]} 39... bxa3 {[%clk 0:00:03]} 40. Qxa3 {[%clk 0:00:14.3]}
40... Qxa3+ {[%clk 0:00:02.4]} 41. bxa3 {[%clk 0:00:15.2]} 41... Ra8 {[%clk
0:00:02.5]} 42. Rxe5 {[%clk 0:00:13.5]} 42... fxe5 {[%clk 0:00:01.1]} 43. Bxg6+
{[%clk 0:00:14.1]} 43... Kxh6 {[%clk 0:00:02]} 44. Bxf7 {[%clk 0:00:14.4]} 44...
Bb5 {[%clk 0:00:02.2]} 45. Rg6+ {[%clk 0:00:13.6]} 45... Kh5 {[%clk 0:00:02.5]}
46. Rg8+ {[%clk 0:00:13.4]} 46... Kh4 {[%clk 0:00:03.4]} 47. Rxa8 {[%clk
0:00:14.3]} 47... Bc4 {[%clk 0:00:04.1]} 48. Kb2 {[%clk 0:00:14.7]} 48... Bxd5
{[%clk 0:00:05]} 49. Rh8+ {[%clk 0:00:15.1]} 49... Kg4 {[%clk 0:00:04.7]} 50.
Nd8 {[%clk 0:00:16]} 50... Be4 {[%clk 0:00:04.5]} 51. Be6+ {[%clk 0:00:15.4]}
51... Kf3 {[%clk 0:00:04.7]} 52. Rg8 {[%clk 0:00:16.3]} 52... d5 {[%clk
0:00:05.6]} 53. Rf8+ {[%clk 0:00:16.8]} 53... Ke3 {[%clk 0:00:05.8]} 54. Nc6
{[%clk 0:00:17.7]} 54... d4 {[%clk 0:00:06.7]} 55. Nxe5 {[%clk 0:00:18]} 55...
d3 {[%clk 0:00:07.1]} 56. Nc4+ {[%clk 0:00:18.2]} 56... Ke2 {[%clk 0:00:07.1]}
57. Rd8 {[%clk 0:00:18.5]} 57... d2 {[%clk 0:00:07.4]} 58. Rxd2+ {[%clk
0:00:18.2]} 58... Kf3 {[%clk 0:00:08.3]} 59. Kc3 {[%clk 0:00:18.8]} 59... Kg3
{[%clk 0:00:08.8]} 60. Rd4 {[%clk 0:00:19.2]} 60... Bf3 {[%clk 0:00:09.7]} 61.
Rd3 {[%clk 0:00:19.5]} 61... Kf2 {[%clk 0:00:09.9]} 62. Rxf3+ {[%clk 0:00:20.4]}
62... Kxf3 {[%clk 0:00:10.8]} 63. Bd5+ {[%clk 0:00:21.3]} 63... Kf4 {[%clk
0:00:11.1]} 64. Kd4 {[%clk 0:00:22.2]} 64... Kg5 {[%clk 0:00:12]} 65. Ne5 {[%clk
0:00:22.3]} 65... Kf6 {[%clk 0:00:12.9]} 66. Nf3 {[%clk 0:00:22.6]} 66... Ke7
{[%clk 0:00:13.8]} 67. Ke5 {[%clk 0:00:23]} 67... Kd8 {[%clk 0:00:14.7]} 68. Kd6
{[%clk 0:00:23.4]} 68... Kc8 {[%clk 0:00:14.8]} 69. Ne5 {[%clk 0:00:23.7]} 69...
Kb8 {[%clk 0:00:15.7]} 70. Kc5 {[%clk 0:00:23.9]} 70... Ka7 {[%clk 0:00:16.6]}
71. Be6 {[%clk 0:00:24.2]} 71... Ka6 {[%clk 0:00:17.5]} 72. Bd7 {[%clk
0:00:24.2]} 72... Ka5 {[%clk 0:00:18.4]} 73. Nc4+ {[%clk 0:00:24.3]} 73... Ka6
{[%clk 0:00:18.6]} 74. Bb5+ {[%clk 0:00:24.8]} 74... Ka7 {[%clk 0:00:19.3]} 75.
Kc6 {[%clk 0:00:25.4]} 75... Kb8 {[%clk 0:00:20.2]} 76. Ba6 {[%clk 0:00:25.4]}
76... Ka7 {[%clk 0:00:20.4]} 77. Bb7 {[%clk 0:00:25.8]} 77... Kb8 {[%clk
0:00:21.3]} 78. Nd6 {[%clk 0:00:25.1]} 78... Ka7 {[%clk 0:00:22.2]} 79. Bc8
{[%clk 0:00:23.9]} 79... Kb8 {[%clk 0:00:22.1]} 80. Kb6 {[%clk 0:00:24.3]} 80...
Ka8 {[%clk 0:00:21.8]} 81. Ba6 {[%clk 0:00:24.5]} 81... Kb8 {[%clk 0:00:22.7]}
82. Nb5 {[%clk 0:00:24.9]} 82... Ka8 {[%clk 0:00:23.6]} 83. Nc3 {[%clk
0:00:23.6]} 83... Kb8 {[%clk 0:00:24.5]} 84. Nd5 {[%clk 0:00:23.2]} 84... Ka8
{[%clk 0:00:24.9]} 85. Ne7 {[%clk 0:00:23.4]} 85... Kb8 {[%clk 0:00:25.3]} 86.
a4 {[%clk 0:00:23.8]} 86... Ka8 {[%clk 0:00:26.2]} 87. Bb7+ {[%clk 0:00:24.2]}
87... Kb8 {[%clk 0:00:27.1]} 88. Nc6# {[%clk 0:00:24.7]} 1-0